bitfinex/quotes_SOLUSD_20220227
["timestamp","ask_amount","ask_price","bid_price","bid_amount"]
[1645989875731,4.627,86.484,86.411,11.32262527]
[1645989876132,2.74678921,86.483,86.411,11.32262527]
[1645989876333,118.00094207,86.442,86.411,11.32262527]
[1645989879236,118.7,86.441,86.411,11.32262527]
[1645989879438,6.0,86.441,86.37,2.74614468]
[1645989879637,6.0,86.441,86.332,2.53464532]
[1645989879837,4.63,86.44,86.331,2.5118653]
[1645989880136,22.0112,86.44,86.332,32.8914575]
[1645989880337,17.3812,86.44,86.33,13.77]
[1645989880540,4.63,86.439,86.321,0.45030514]
[1645989880842,13.77,86.43,86.321,0.45030514]
[1645989881038,2.31,86.419,86.321,0.45030514]
[1645989881239,115.51,86.409,86.321,0.45030514]
[1645989881439,113.2,86.407,86.321,0.45030514]
[1645989881645,113.2,86.405,86.321,0.45030514]
[1645989881839,2.31,86.388,86.321,0.45030514]
[1645989882041,113.2,86.379,86.321,0.45030514]
[1645989882242,113.2,86.369,86.321,5.14e-06]
[1645989882648,1.54519262,86.45,86.321,5.14e-06]
[1645989882649,13.77,86.41,86.321,5.14e-06]
[1645989882840,133.8902239,86.362,86.321,5.14e-06]
[1645989886644,113.2,86.361,86.321,5.14e-06]
[1645989886848,133.8902239,86.362,86.321,5.14e-06]
[1645989890448,133.8902239,86.362,86.321,2.77477295]
[1645989891955,24.9765,86.44,86.332,90.0]
[1645989892252,113.2,86.438,86.34,13.77]
[1645989892450,113.2,86.438,86.341,8.889347]
[1645989892649,113.2,86.438,86.342,6.0]
[1645989892849,4.63,86.437,86.342,6.0]
[1645989893048,113.2,86.429,86.331,26.52917059]
[1645989893251,124.93099663,86.41,86.341,2.38042645]
[1645989893450,113.2,86.409,86.332,2.8943319]
[1645989894454,4.631,86.408,86.3,30.0069]
[1645989894652,4.631,86.408,86.301,2.32062965]
[1645989894653,113.2,86.407,86.301,2.32062965]
[1645989894853,4.631,86.406,86.292,22.6936]
[1645989895053,113.2,86.405,86.293,3.03285558]
[1645989895253,4.631,86.404,86.317,2.26797311]
[1645989895458,203.2,86.389,86.23,17.3958]
[1645989895656,113.2,86.387,86.243,2.48873919]
[1645989895856,2.31,86.358,86.21,13.77]
[1645989896156,113.2,86.349,86.211,3.08383378]
[1645989896357,113.2,86.347,86.212,36.45166066]
[1645989896556,113.2,86.319,86.213,2.6239671]
[1645989897059,129.86478364,86.322,86.218,28.18274708]
[1645989897256,129.86478364,86.322,86.22,13.77]
[1645989897461,129.86478364,86.322,86.238,27.88700321]
[1645989897657,113.2,86.321,86.238,30.40913646]
[1645989897861,113.2,86.321,86.239,2.51756651]
[1645989898856,129.86478364,86.322,86.239,2.51756651]
[1645989899257,4.635,86.384,86.24,19.77]
[1645989899458,4.635,86.384,86.25,13.77]
[1645989899660,4.634,86.4,86.252,35.19740052]
[1645989899860,113.2,86.389,86.28,17.3887]
[1645989900059,113.2,86.389,86.29,13.77]
[1645989900480,113.2,86.387,86.291,2.4706366]
[1645989900680,113.2,86.387,86.29,13.77]
[1645989900885,113.2,86.379,86.29,31.156]
[1645989901081,113.2,86.379,86.282,2.78865824]
[1645989901682,2.74678921,86.378,86.271,2.67478999]
[1645989901981,114.81172502,86.369,86.244,2.27494688]
[1645989902183,113.2,86.369,86.245,6.0]
[1645989902482,113.2,86.362,86.246,35.36559147]
[1645989902679,113.2,86.362,86.247,3.17537861]
[1645989903080,113.2,86.362,86.251,2.67395126]
[1645989903479,113.2,86.362,86.252,6.0]
[1645989903682,4.634,86.361,86.252,6.0]
[1645989903882,132.97,86.36,86.251,2.67395126]
[1645989904082,132.97,86.36,86.247,0.3]
[1645989904083,4.634,86.359,86.247,0.3]
[1645989904281,113.2,86.329,86.247,0.3]
[1645989904485,4.635,86.328,86.247,0.3]
[1645989904686,2.31,86.318,86.247,0.3]
[1645989904884,4.635,86.317,86.247,0.3]
[1645989905483,113.2,86.29,86.247,0.3]
[1645989905683,1.58139284,86.289,86.151,3.07522169]
[1645989905885,4.636,86.288,86.144,2.79871999]
[1645989906083,1.39644527,86.289,86.145,31.90840291]
[1645989906385,113.2,86.279,86.18,17.4104]
[1645989906583,17.413,86.28,86.15,13.77]
[1645989906784,17.413,86.28,86.17,13.77]
[1645989907084,4.638,86.309,86.172,33.71165854]
[1645989907386,4.638,86.309,86.146,2.89661754]
[1645989907387,4.636,86.31,86.2,13.77]
[1645989907584,87.51421796,86.339,86.201,8.53036269]
[1645989907785,12.11924454,86.331,86.201,6.0]
[1645989908185,4.636,86.33,86.211,27.94800692]
[1645989908387,12.11749562,86.348,86.22,13.77]
[1645989908584,12.11749562,86.348,86.221,6.0]
[1645989908785,12.05446072,86.357,86.222,113.2]
[1645989908985,78.9081,86.407,86.225,33.94920962]
[1645989908986,113.2,86.387,86.225,33.94920962]
[1645989909186,113.2,86.379,86.251,32.05505016]
[1645989909386,37.9878994,86.383,86.252,6.0]
[1645989909585,4.634,86.382,86.252,8.44563991]
[1645989909785,117.834,86.382,86.252,8.44563991]
[1645989909989,1.75969594,86.381,86.252,8.44563991]
[1645989910189,17.3907,86.38,86.26,17.3947]
[1645989910395,28.15155556,86.381,86.271,36.00223529]
[1645989910589,162.86034622,86.339,86.272,8.60488635]
[1645989910986,162.86034622,86.339,86.272,2.60488635]
[1645989911186,162.86034622,86.339,86.28,17.3896]
[1645989911390,162.86034622,86.339,86.281,2.86015478]
[1645989911789,162.86034622,86.339,86.25,13.77]
[1645989911988,162.86034622,86.339,86.251,8.90295795]
[1645989912189,6.0,86.338,86.251,8.90295795]
[1645989912593,6.0,86.338,86.251,6.0]
[1645989912790,162.86034622,86.339,86.252,33.49475329]
[1645989912989,162.86034622,86.339,86.253,2.46716962]
[1645989913391,162.86034622,86.339,86.26,17.3948]
[1645989913595,162.86034622,86.339,86.261,2.96382046]
[1645989913991,6.0,86.338,86.261,2.96382046]
[1645989914189,6.0,86.338,86.253,2.33513416]
[1645989914190,4.635,86.337,86.253,2.33513416]
[1645989914792,6.0,86.338,86.253,2.33513416]
[1645989914990,162.86034622,86.339,86.253,2.33513416]
[1645989915992,162.45127622,86.339,86.253,2.33513416]
[1645989916192,162.45127622,86.339,86.254,6.0]
[1645989916591,162.45127622,86.339,86.261,2.46956136]
[1645989916992,162.45127622,86.339,86.261,113.2]
[1645989917192,162.45127622,86.339,86.26,13.77]
[1645989917193,162.45127622,86.339,86.263,113.2]
[1645989917395,162.45127622,86.339,86.268,113.2]
[1645989917594,12.04769266,86.391,86.281,233.82154164]
[1645989917797,12.10976631,86.418,86.301,113.2]
[1645989917996,1.54519262,86.459,86.311,113.2]
[1645989918193,1.54519262,86.459,86.321,113.2]
[1645989918398,1.54519262,86.47,86.322,13.36992275]
[1645989918594,23.78858238,86.468,86.351,27.42645112]
[1645989918793,4.628,86.467,86.36,13.77]
[1645989918996,23.78858238,86.468,86.361,6.0]
[1645989919396,23.78858238,86.468,86.362,7.37478921]
[1645989919700,23.78858238,86.468,86.365,113.2]
[1645989919894,23.78858238,86.468,86.366,13.14338599]
[1645989920093,23.78858238,86.468,86.38,13.77]
[1645989920297,23.78858238,86.468,86.4,17.3612]
[1645989920494,23.78858238,86.468,86.41,13.77]
[1645989920695,23.78858238,86.468,86.411,8.91985885]
[1645989920894,23.78858238,86.468,86.411,2.91985885]
[1645989921095,23.78858238,86.468,86.41,13.77]
[1645989921595,23.78858238,86.468,86.39,13.77]
[1645989921796,23.78858238,86.468,86.38,13.77]
[1645989921994,23.78858238,86.468,86.381,6.0]
[1645989922194,23.78858238,86.468,86.381,9.05533434]
[1645989922595,23.78858238,86.468,86.383,2.75913796]
[1645989922799,23.78858238,86.468,86.384,6.0]
[1645989923399,6.0,86.467,86.384,6.0]
[1645989923598,4.628,86.466,86.384,6.0]
[1645989923899,23.78858238,86.468,86.384,6.0]
[1645989927400,6.0,86.467,86.384,6.0]
[1645989927700,113.2,86.466,86.384,6.0]
[1645989928300,113.2,86.466,86.385,28.80494346]
[1645989928500,113.2,86.466,86.386,9.11696296]
[1645989928701,23.78858238,86.468,86.386,9.11696296]
[1645989928901,23.78858238,86.468,86.39,13.77]
[1645989929104,23.78858238,86.468,86.391,8.94098235]
[1645989930202,22.78858238,86.468,86.39,13.77]
[1645989930404,22.78858238,86.468,86.391,2.88489314]
[1645989930603,22.78858238,86.468,86.39,13.77]
[1645989930802,22.78858238,86.468,86.391,8.5742443]
[1645989931805,129.90266743,86.479,86.392,143.72162511]
[1645989932004,23.6001,86.528,86.396,113.2]
[1645989932204,6.0,86.527,86.41,13.77]
[1645989932504,4.625,86.548,86.411,8.95458786]
[1645989932707,22.39788695,86.548,86.412,28.44088785]
[1645989932907,4.625,86.547,86.413,6.0]
[1645989933105,4.625,86.547,86.413,8.45168299]
[1645989933506,3.70545349,86.487,86.413,8.45168299]
[1645989934906,3.20545349,86.487,86.413,8.45168299]
[1645989935107,133.85948927,86.488,86.413,8.45168299]
[1645989935509,133.85948927,86.488,86.414,30.52162511]
[1645989935707,133.85948927,86.488,86.415,8.77305721]
[1645989935907,133.85948927,86.488,86.43,13.77]
[1645989936107,24.2870716,86.487,86.431,6.0]
[1645989936307,24.2870716,86.487,86.432,31.28662243]
[1645989936607,24.2870716,86.487,86.433,2.83808539]
[1645989936808,133.85948927,86.488,86.403,30.52162511]
[1645989937010,1.67254868,86.487,86.403,30.52162511]
[1645989937210,1.67254868,86.487,86.331,17.0704]
[1645989937211,119.2,86.487,86.331,17.0704]
[1645989937411,1.5400738,86.486,86.361,29.51251666]
[1645989937814,1.5400738,86.486,86.362,2.91603]
[1645989938015,4.628,86.485,86.362,2.91603]
[1645989938412,4.628,86.485,86.36,13.77]
[1645989938614,113.2,86.479,86.36,13.77]
[1645989938814,4.48,86.469,86.332,48.8852]
[1645989939020,4.628,86.468,86.333,2.74339324]
[1645989939417,4.628,86.475,86.334,64.72834403]
[1645989939615,73.9284,86.476,86.335,3.09020409]
[1645989939819,73.9284,86.476,86.336,2.53032578]
[1645989940123,1.47307137,86.475,86.351,25.75168877]
[1645989940318,1.5700721,86.473,86.352,8.58637329]
[1645989940521,398.84754122,86.434,86.351,25.75168877]
[1645989940718,1.58718438,86.433,86.351,25.75168877]
[1645989941017,398.84754122,86.434,86.351,25.75168877]
[1645989941219,398.84754122,86.434,86.35,13.77]
[1645989941419,1.51265097,86.433,86.35,13.77]
[1645989942217,1.51265097,86.433,86.351,30.42011789]
[1645989942421,398.84754122,86.434,86.351,30.42011789]
[1645989942625,398.84754122,86.434,86.353,113.2]
[1645989942826,398.84754122,86.434,86.355,183.45315828]
[1645989943024,398.84754122,86.434,86.37,126.97]
[1645989943222,17.29330218,86.433,86.371,33.10808241]
[1645989943420,17.29330218,86.433,86.372,6.0]
[1645989943622,1.89826423,86.432,86.372,6.0]
[1645989944027,1.89826423,86.432,86.35,13.77]
[1645989944427,1.89826423,86.432,86.334,47.4249]
[1645989944428,1.89826423,86.432,86.345,31.33687036]
[1645989944825,115.09826423,86.432,86.345,31.33687036]
[1645989945031,2.16795913,86.431,86.345,31.33687036]
[1645989945827,17.29330218,86.433,86.346,6.0]
[1645989946027,17.29330218,86.433,86.36,13.77]
[1645989946227,1.5757379,86.432,86.362,26.16119016]
[1645989946428,17.29330218,86.433,86.363,6.0]
[1645989946629,201.5613998,86.427,86.363,6.0]
[1645989946830,2.06144655,86.426,86.363,6.0]
[1645989947431,113.2,86.426,86.33,13.77]
[1645989947631,113.2,86.424,86.31,13.77]
[1645989947831,1.78360328,86.421,86.31,13.77]
[1645989948031,1.60791762,86.418,86.31,13.77]
[1645989948234,5.21614974,86.418,86.31,13.77]
[1645989948431,1.60032184,86.415,86.312,6.0]
[1645989948835,1.60032184,86.415,86.313,181.09]
[1645989949046,152.29488735,86.427,86.315,113.2]
[1645989949246,1.59325149,86.426,86.318,2.36987569]
[1645989949447,1.59325149,86.426,86.33,13.77]
[1645989949646,16.98551688,86.425,86.33,13.77]
[1645989949847,119.2,86.424,86.285,101.57428176]
[1645989950053,113.2,86.422,86.284,4.7817]
[1645989950249,1.4471657,86.421,86.281,67.89]
[1645989950448,6.0,86.42,86.28,40.74317635]
[1645989950649,1.45280756,86.419,86.282,2.29257616]
[1645989950851,114.65280756,86.419,86.283,2.98687468]
[1645989951050,1.45280756,86.419,86.284,113.2]
[1645989951252,1.45280756,86.419,86.291,67.89]
[1645989951449,1.45280756,86.419,86.301,33.5079301]
[1645989951650,1.45280756,86.419,86.31,13.77]
[1645989951849,6.0,86.418,86.311,6.0]
[1645989952048,6.32893573,86.424,86.311,8.86263866]
[1645989952249,6.0,86.423,86.311,6.0]
[1645989952749,1.79102611,86.422,86.311,32.97317635]
[1645989952951,6.0,86.421,86.311,32.97317635]
[1645989953249,1.58048087,86.419,86.311,6.0]
[1645989953453,1.39703355,86.416,86.311,6.0]
[1645989953749,3.91601742,86.412,86.311,6.0]
[1645989953949,1.76634467,86.409,86.302,6.0]
[1645989954151,113.2,86.399,86.302,6.0]
[1645989954351,130.0472998,86.396,86.302,6.0]
[1645989954550,1.60548266,86.395,86.302,6.0]
[1645989954750,6.0,86.394,86.302,6.0]
[1645989955251,1.60548266,86.395,86.302,6.0]
[1645989955650,1.79569448,86.395,86.302,6.0]
[1645989955851,16.8472998,86.396,86.303,67.89]
[1645989956053,1.56390982,86.426,86.314,113.2]
[1645989956251,1.56390982,86.426,86.32,126.97]
[1645989956451,1.56390982,86.426,86.321,8.48076185]
[1645989956651,1.80115538,86.438,86.322,4.631]
[1645989956850,1.80115538,86.438,86.33,130.5727]
[1645989957051,69.9091,86.439,86.34,13.77]
[1645989957052,1.62398558,86.436,86.34,13.77]
[1645989957261,1.62398558,86.436,86.342,32.06807355]
[1645989957454,14.9265058,86.437,86.344,113.2]
[1645989957653,14.9265058,86.437,86.345,10.63]
[1645989957956,1.50396904,86.436,86.346,6.0]
[1645989958354,1.50396904,86.436,86.361,28.09433392]
[1645989958754,14.9265058,86.437,86.361,28.09433392]
[1645989958954,14.9265058,86.437,86.362,6.0]
[1645989959154,1.44827536,86.459,86.362,6.0]
[1645989959356,4.628,86.475,86.362,6.0]
[1645989959357,136.76466857,86.453,86.362,6.0]
[1645989959554,1.49243722,86.452,86.362,6.0]
[1645989960156,16.03498123,86.451,86.362,6.0]
[1645989960356,1.39543459,86.45,86.362,6.0]
[1645989960755,16.03498123,86.451,86.362,6.0]
[1645989960957,1.74936479,86.45,86.362,6.0]
[1645989961557,16.03498123,86.451,86.362,6.0]
[1645989961955,16.03498123,86.451,86.363,67.89]
[1645989962156,16.03498123,86.451,86.366,113.2]
[1645989962362,16.03498123,86.451,86.381,35.64768768]
[1645989962556,92.48917784,86.453,86.381,35.64768768]
[1645989963356,1.58968181,86.452,86.381,35.64768768]
[1645989963556,117.32052818,86.452,86.381,35.64768768]
[1645989963760,1.8721636,86.451,86.381,35.64768768]
[1645989963957,1.8721636,86.451,86.35,13.77]
[1645989964157,113.2,86.449,86.351,6.0]
[1645989964357,113.2,86.447,86.334,6.0]
[1645989964658,1.73016255,86.444,86.334,6.0]
[1645989964857,113.2,86.442,86.335,28.40033385]
[1645989965058,6.31881508,86.441,86.336,6.0]
[1645989965259,0.74602489,86.439,86.34,13.77]
[1645989965459,0.74602489,86.439,86.341,6.0]
[1645989965859,1.4477081,86.452,86.341,8.53098509]
[1645989966058,1.4477081,86.452,86.345,67.89]
[1645989966262,1.46090236,86.461,86.352,113.2]
[1645989966458,1.46090236,86.461,86.36,13.77]
[1645989966660,1.46090236,86.461,86.361,8.47485668]
[1645989966860,3.76197649,86.452,86.362,32.161025]
[1645989967060,3.76197649,86.452,86.363,6.0]
[1645989967462,5.52312877,86.452,86.363,6.0]
[1645989969966,113.2,86.45,86.363,6.0]
[1645989970163,114.5786607,86.448,86.341,6.0]
[1645989970365,113.2,86.446,86.341,6.0]
[1645989970564,6.2799852,86.445,86.341,6.0]
[1645989970765,7.56286756,86.444,86.341,6.0]
[1645989971063,113.2,86.443,86.342,34.60853131]
[1645989971367,2.67226396,86.438,86.343,6.0]
[1645989971763,113.2,86.436,86.343,6.0]
[1645989971964,7.68837202,86.435,86.343,6.0]
[1645989973170,113.2,86.434,86.343,6.0]
[1645989973370,17.3799,86.43,86.343,6.0]
[1645989973571,17.3799,86.43,86.32,13.77]
[1645989973572,119.2,86.429,86.334,6.0]
[1645989973773,113.2,86.427,86.311,6.0]
[1645989974074,1.72355339,86.424,86.311,6.0]
[1645989974273,3.726727,86.422,86.312,30.29656317]
[1645989974571,3.726727,86.422,86.313,10.631]
[1645989974772,3.726727,86.422,86.314,113.2]
[1645989974973,3.726727,86.422,86.317,2.85169711]
[1645989975173,3.726727,86.422,86.33,13.77]
[1645989975373,3.726727,86.422,86.332,32.28167683]
[1645989975574,3.726727,86.422,86.333,6.0]
[1645989975976,6.0,86.421,86.333,6.0]
[1645989976176,3.726727,86.422,86.333,6.0]
[1645989977377,144.14421716,86.422,86.333,6.0]
[1645989977578,1.86570067,86.421,86.333,6.0]
[1645989978679,144.14421716,86.422,86.333,8.94793996]
[1645989979078,1.86377686,86.421,86.333,6.0]
[1645989981578,140.41749016,86.422,86.334,181.09]
[1645989981779,140.41749016,86.422,86.341,113.2]
[1645989981980,140.41749016,86.422,86.34,17.3724]
[1645989981981,140.41749016,86.422,86.35,126.97]
[1645989982178,140.41749016,86.422,86.351,6.0]
[1645989982579,140.41749016,86.422,86.353,2.27775168]
[1645989982798,140.41749016,86.422,86.356,2.64146589]
[1645989982998,140.41749016,86.422,86.37,13.77]
[1645989983401,140.41749016,86.422,86.372,113.2]
[1645989983602,6.34,86.45,86.383,67.89]
[1645989983799,6.34,86.45,86.38,2.46070355]
[1645989983800,6.34,86.45,86.395,67.89]
[1645989983999,6.34,86.45,86.397,2.87426212]
[1645989984201,3.83724448,86.485,86.41,126.97]
[1645989984399,3.83724448,86.485,86.412,31.86690321]
[1645989984400,398.84754122,86.476,86.412,31.86690321]
[1645989984602,398.84754122,86.476,86.413,6.0]
[1645989985400,398.84754122,86.476,86.412,31.86690321]
[1645989985799,3.83724448,86.485,86.412,31.86690321]
[1645989986601,1.54519262,86.495,86.412,31.86690321]
[1645989986801,1.54519262,86.508,86.42,17.3565]
[1645989987000,1.43379921,86.51,86.43,13.77]
[1645989987303,118.12228894,86.514,86.431,6.0]
[1645989987700,3.67544445,86.513,86.432,36.21319742]
[1645989987902,5.41729296,86.513,86.432,36.21319742]
[1645989988402,3.67544445,86.513,86.432,36.21319742]
[1645989988602,3.67544445,86.513,86.433,6.0]
[1645989988802,3.17544445,86.513,86.433,6.0]
[1645989989806,3.17544445,86.513,86.432,36.21319742]
[1645989990104,4.88930457,86.513,86.402,116.01814166]
[1645989990303,4.88930457,86.513,86.403,6.0]
[1645989990503,3.17544445,86.513,86.411,181.09]
[1645989990703,3.17544445,86.513,86.413,181.09]
[1645989990904,3.17544445,86.513,86.417,113.2]
[1645989991102,3.17544445,86.513,86.416,67.89]
[1645989991103,3.17544445,86.513,86.43,13.77]
[1645989991305,3.17544445,86.513,86.431,35.04504331]
[1645989992604,3.17544445,86.513,86.432,113.2]
[1645989992804,3.17544445,86.513,86.436,113.2]
[1645989993003,3.17544445,86.513,86.437,6.0]
[1645989993203,4.67829242,86.513,86.44,13.77]
[1645989993402,4.67829242,86.513,86.431,29.04504331]
[1645989993403,4.61981478,86.513,86.441,6.0]
[1645989993604,4.61981478,86.513,86.431,29.04504331]
[1645989993802,3.17544445,86.513,86.431,29.04504331]
[1645989994204,5.02130749,86.513,86.431,29.04504331]
[1645989994406,3.17544445,86.513,86.432,6.0]
[1645989994603,3.17544445,86.513,86.433,113.2]
[1645989994803,2.67544445,86.513,86.434,6.0]
[1645989995405,2.67544445,86.513,86.435,181.09]
[1645989995605,118.12228894,86.514,86.45,13.77]
[1645989995805,118.12228894,86.514,86.451,6.0]
[1645989996506,4.67597527,86.513,86.452,26.61151576]
[1645989996708,4.67597527,86.513,86.453,6.0]
[1645989997307,1.69561577,86.513,86.453,6.0]
[1645989997509,118.12228894,86.514,86.453,6.0]
[1645989998114,118.12228894,86.514,86.454,181.09]
[1645989998313,3.43841375,86.554,86.456,181.09]
[1645989998515,1.53624556,86.56,86.471,113.2]
[1645989998717,1.53624556,86.56,86.48,13.77]
[1645989999614,1.53624556,86.56,86.481,34.95547594]
[1645989999815,131.93297989,86.578,86.482,113.2]
[1645990000027,47.54,86.592,86.486,113.2]
[1645990000215,1.3513609,86.591,86.488,113.2]
[1645990000414,1.3513609,86.591,86.5,13.77]
[1645990000615,3.63435507,86.59,86.501,34.68722396]
[1645990000817,3.63435507,86.59,86.501,28.68722396]
[1645990002016,3.63435507,86.59,86.502,6.0]
[1645990002217,3.63435507,86.59,86.503,113.2]
[1645990002420,3.63435507,86.59,86.504,6.0]
[1645990003018,3.63435507,86.59,86.502,6.0]
[1645990003620,3.63435507,86.59,86.503,70.63678921]
[1645990003819,3.63435507,86.59,86.505,67.89]
[1645990004018,3.63435507,86.59,86.506,73.89]
[1645990004218,3.63435507,86.59,86.521,33.48442735]
[1645990004620,1.81505499,86.603,86.521,33.48442735]
[1645990004821,24.5881,86.604,86.523,113.2]
[1645990005022,24.5881,86.604,86.524,6.0]
[1645990005222,1.80429798,86.613,86.525,113.2]
[1645990005422,119.84618789,86.623,86.54,13.77]
[1645990005620,1.58983012,86.621,86.551,30.80556272]
[1645990006021,119.84618789,86.623,86.553,113.2]
[1645990006220,73.0242,86.659,86.556,67.89]
[1645990006423,73.0242,86.659,86.571,113.2]
[1645990006424,0.86396551,86.658,86.571,113.2]
[1645990006624,2.74256865,86.658,86.573,27.50373374]
[1645990006823,4.28877399,86.658,86.574,6.0]
[1645990007923,73.0242,86.659,86.576,67.89]
[1645990008126,1.39836187,86.684,86.59,13.77]
[1645990008325,4.618,86.702,86.591,113.2]
[1645990008526,1.61672423,86.709,86.591,119.2]
[1645990008723,398.84754122,86.671,86.591,8.74678921]
[1645990008924,2.8639217,86.67,86.592,26.73160887]
[1645990009123,4.42413154,86.67,86.593,6.0]
[1645990009525,1.83823713,86.669,86.593,6.0]
[1645990009725,1.45978568,86.685,86.591,6.0]
[1645990009925,1.38974578,86.685,86.594,2.74678921]
[1645990010127,1.38974578,86.685,86.595,6.0]
[1645990010726,3.23121022,86.684,86.597,28.28239975]
[1645990010927,3.23121022,86.684,86.61,13.77]
[1645990011130,3.23121022,86.684,86.611,38.57976531]
[1645990011728,3.23121022,86.684,86.61,13.77]
[1645990012631,3.23121022,86.684,86.611,32.71647263]
[1645990013128,3.23121022,86.684,86.612,6.0]
[1645990013528,88.12230573,86.686,86.612,6.0]
[1645990014029,88.12230573,86.686,86.613,24.52050968]
[1645990014228,88.12230573,86.686,86.614,6.0]
[1645990014428,3.12734217,86.685,86.614,6.0]
[1645990014627,3.12734217,86.685,86.615,67.89]
[1645990014827,3.12734217,86.685,86.616,6.0]
[1645990015027,3.12734217,86.685,86.63,13.77]
[1645990015228,1.76562535,86.718,86.631,34.33233614]
[1645990015430,109.58504669,86.712,86.631,34.33233614]
[1645990015630,109.58504669,86.712,86.632,119.2]
[1645990015829,1.76562535,86.718,86.632,6.0]
[1645990016030,1.72479001,86.756,86.632,33.50825293]
[1645990016231,3.73939148,86.755,86.634,2.80295156]
[1645990016430,3.73939148,86.755,86.637,2.6056042]
[1645990016631,3.73939148,86.755,86.65,13.77]
[1645990016831,3.73939148,86.755,86.652,29.59213624]
[1645990017036,4.613,86.754,86.652,29.59213624]
[1645990017531,6.0,86.753,86.652,29.59213624]
[1645990017733,2.74678921,86.753,86.652,29.59213624]
[1645990017933,6.0,86.752,86.652,29.59213624]
[1645990018132,7.71537374,86.752,86.652,29.59213624]
[1645990018333,6.0,86.752,86.652,29.59213624]
[1645990018536,98.41738243,86.75,86.653,33.97157635]
[1645990018838,4.613,86.809,86.653,33.97157635]
[1645990018839,1.35826376,86.749,86.654,4.613]
[1645990019032,1.53735631,86.775,86.655,6.0]
[1645990019233,1.53735631,86.775,86.67,13.77]
[1645990019432,1.53735631,86.775,86.671,6.0]
[1645990019633,4.612,86.774,86.671,6.0]
[1645990019832,3.13215689,86.773,86.672,35.69782914]
[1645990020034,3.13215689,86.773,86.673,6.0]
[1645990020935,3.13215689,86.773,86.68,17.3029]
[1645990021133,3.13215689,86.773,86.691,30.16060726]
[1645990021333,3.13215689,86.773,86.692,6.0]
[1645990021934,3.13215689,86.773,86.691,30.16060726]
[1645990022534,1.53735631,86.775,86.691,30.16060726]
[1645990022737,1.75971664,86.803,86.692,9.86293837]
[1645990022937,1.25971664,86.803,86.701,2.46666014]
[1645990023135,1.25971664,86.803,86.71,13.77]
[1645990023338,1.25971664,86.803,86.711,8.36137175]
[1645990023538,3.83607589,86.802,86.713,2.30345034]
[1645990023836,3.83607589,86.802,86.714,6.0]
[1645990024058,3.83607589,86.802,86.72,17.2939]
[1645990024238,3.83607589,86.802,86.731,31.99328197]
[1645990024437,1.25971664,86.803,86.732,6.0]
[1645990024636,748.39546658,86.808,86.732,9.02724974]
[1645990024838,748.39546658,86.808,86.733,30.95352188]
[1645990025038,748.39546658,86.808,86.734,8.48602706]
[1645990025238,748.39546658,86.808,86.74,17.2922]
[1645990025440,748.39546658,86.808,86.734,39.43954894]
[1645990025441,748.39546658,86.808,86.75,13.77]
[1645990025640,748.39546658,86.808,86.752,33.86970666]
[1645990025839,748.39546658,86.808,86.753,6.0]
[1645990026441,748.39546658,86.808,86.751,6.0]
[1645990027143,3.5433953,86.807,86.751,6.0]
[1645990028943,3.5433953,86.807,86.751,34.20673267]
[1645990029948,3.0433953,86.807,86.751,6.0]
[1645990030251,748.39546658,86.808,86.751,6.0]
[1645990030451,748.39546658,86.808,86.752,113.2]
[1645990030647,748.39546658,86.808,86.754,113.2]
[1645990030849,748.39546658,86.808,86.756,113.2]
[1645990031047,748.39546658,86.808,86.77,13.77]
[1645990031250,748.39546658,86.808,86.78,13.77]
[1645990031451,748.39546658,86.808,86.781,38.00982846]
[1645990031670,748.39546658,86.808,86.79,13.77]
[1645990031870,748.39546658,86.808,86.791,6.0]
[1645990033470,748.39546658,86.808,86.791,8.51778859]
[1645990033670,582.04626658,86.808,86.792,113.2]
[1645990033870,116.64092901,86.862,86.793,6.0]